fUST/lending_fUST_20250828
["ID","MTS","AMOUNT","RATE_DAILY","PERIOD"]
[381858956,1756373440954,-151.0,0.00019178,2]
[381858957,1756373440964,-151.0,0.00019178,2]
[381858958,1756373440975,-151.0,0.00019178,2]
[381858959,1756373440985,-480.0,0.00019178,2]
[381858960,1756373440994,-480.0,0.00019178,2]
[381858961,1756373441003,-151.80152458,0.00019178,2]
[381858962,1756373441013,-519.94,0.00019178,2]
[381858963,1756373441022,-2941.21,0.00019178,2]
[381858964,1756373441032,-480.0,0.00019178,2]
[381858965,1756373441042,-300.0,0.00019178,2]
[381858966,1756373441052,-151.0,0.00019178,2]
[381858967,1756373441061,-500.0,0.00019178,2]
[381858968,1756373441071,-500.0,0.00019178,2]
[381858969,1756373441081,-480.0,0.00019178,2]
[381858970,1756373441090,-1857.41,0.00019178,2]
[381858971,1756373441100,-480.0,0.00019178,2]
[381858972,1756373441110,-151.0,0.00019178,2]
[381858973,1756373441120,-480.0,0.00019178,2]
[381858974,1756373441130,-500.0,0.00019178,2]
[381858975,1756373441140,-151.0,0.00019178,2]
[381858976,1756373441150,-845.08,0.00019178,2]
[381858977,1756373441160,-480.0,0.00019178,2]
[381858978,1756373441169,-500.0,0.00019178,2]
[381858979,1756373441179,-2309.11,0.00019178,2]
[381858980,1756373441189,-480.0,0.00019178,2]
[381858981,1756373441199,-480.0,0.00019178,2]
[381858982,1756373441208,-480.0,0.00019178,2]
[381858983,1756373441218,-151.0,0.00019178,2]
[381858984,1756373441228,-500.0,0.00019178,2]
[381858985,1756373441237,-480.0,0.00019178,2]
[381858986,1756373441247,-480.0,0.00019178,2]
[381858987,1756373441257,-151.0,0.00019178,2]
[381858988,1756373441268,-151.0,0.00019178,2]
[381858989,1756373441278,-151.0,0.00019178,2]
[381858990,1756373441291,-480.0,0.00019178,2]
[381858991,1756373441301,-151.0,0.00019178,2]
[381858992,1756373441311,-542.14,0.00019178,2]
[381858993,1756373441321,-480.0,0.00019178,2]
[381858994,1756373441331,-500.0,0.00019178,2]
[381858995,1756373441342,-500.0,0.00019178,2]
[381858996,1756373441352,-600.14,0.00019178,2]
[381858997,1756373441365,-1887.89,0.00019178,2]
[381858998,1756373441375,-1030.59,0.00019178,2]
[381858999,1756373441385,-480.0,0.00019178,2]
[381859000,1756373441395,-480.0,0.00019178,2]
[381859001,1756373441405,-834.76,0.00019178,2]
[381859002,1756373441415,-480.0,0.00019178,2]
[381859003,1756373441426,-580.47066992,0.00019178,2]
[381859004,1756373441436,-480.0,0.00019178,2]
[381859005,1756373441446,-480.0,0.00019178,2]
[381859006,1756373441456,-480.0,0.00019178,2]
[381859007,1756373441466,-480.0,0.00019178,2]
[381859008,1756373441476,-480.0,0.00019178,2]
[381859009,1756373441486,-480.0,0.00019178,2]
[381859010,1756373441496,-480.0,0.00019178,2]
[381859011,1756373441506,-536.37,0.00019178,2]
[381859013,1756373441515,-480.0,0.00019178,2]
[381859014,1756373441526,-1111.05,0.00019178,2]
[381859015,1756373441536,-480.0,0.00019178,2]
[381859016,1756373441546,-480.0,0.00019178,2]
[381859017,1756373441555,-806.82,0.00019178,2]
[381859018,1756373441565,-5658.84,0.00019178,2]
[381859019,1756373441575,-480.0,0.00019178,2]
[381859020,1756373441584,-588.47,0.00019178,2]
[381859021,1756373441594,-480.0,0.00019178,2]
[381859022,1756373441604,-559.31,0.00019178,2]
[381859023,1756373441613,-480.0,0.00019178,2]
[381859024,1756373441623,-480.0,0.00019178,2]
[381859025,1756373441633,-480.0,0.00019178,2]
[381859026,1756373441642,-480.0,0.00019178,2]
[381859027,1756373441652,-480.0,0.00019178,2]
[381859028,1756373441662,-704.47,0.00019178,2]
[381859029,1756373441671,-1653.03,0.00019178,2]
[381859030,1756373441681,-489.79,0.00019178,2]
[381859031,1756373441691,-480.0,0.00019178,2]
[381859032,1756373441700,-2840.83,0.00019178,2]
[381859033,1756373441710,-480.0,0.00019178,2]
[381859034,1756373441720,-482.32327462,0.00019178,2]
[381859035,1756373441730,-994.84,0.00019178,2]
[381859036,1756373441739,-480.0,0.00019178,2]
[381859037,1756373441749,-480.0,0.00019178,2]
[381859038,1756373441759,-1303.46,0.00019178,2]
[381859039,1756373441768,-723.81,0.00019178,2]
[381859040,1756373441779,-1347.62,0.00019178,2]
[381859041,1756373441788,-2492.68,0.00019178,2]
[381859042,1756373441798,-480.0,0.00019178,2]
[381859043,1756373441808,-530.2,0.00019178,2]
[381859044,1756373441818,-1677.64,0.00019178,2]
[381859045,1756373441828,-480.0,0.00019178,2]
[381859046,1756373441837,-1891.33,0.00019178,2]
[381859047,1756373441847,-480.0,0.00019178,2]
[381859048,1756373441857,-480.0,0.00019178,2]
[381859049,1756373441867,-550.9636281,0.00019178,2]
[381859050,1756373441877,-480.0,0.00019178,2]
[381859051,1756373441886,-2629.69,0.00019178,2]
[381859052,1756373441896,-480.0,0.00019178,2]
[381859053,1756373441906,-480.0,0.00019178,2]
[381859054,1756373441916,-1704.74,0.00019178,2]
[381859055,1756373441928,-480.0,0.00019178,2]
[381859056,1756373441938,-649.6,0.00019178,2]
[381859057,1756373441948,-3730.69,0.00019178,2]
[381859058,1756373441958,-480.0,0.00019178,2]
[381859059,1756373441968,-480.0,0.00019178,2]
[381859060,1756373441978,-480.0,0.00019178,2]
[381859061,1756373441988,-833.51,0.00019178,2]
[381859062,1756373441998,-480.0,0.00019178,2]
[381859063,1756373442008,-693.35,0.00019178,2]
[381859064,1756373442018,-480.0,0.00019178,2]
[381859065,1756373442027,-480.0,0.00019178,2]
[381859066,1756373442037,-532.38,0.00019178,2]
[381859067,1756373442047,-733.32,0.00019178,2]
[381859068,1756373442057,-480.0,0.00019178,2]
[381859069,1756373442067,-600.9,0.00019178,2]
[381859070,1756373442077,-769.11,0.00019178,2]
[381859071,1756373442087,-480.0,0.00019178,2]
[381859072,1756373442097,-480.0,0.00019178,2]
[381859073,1756373442109,-480.0,0.00019178,2]
[381859074,1756373442118,-480.0,0.00019178,2]
[381859075,1756373442128,-833.84,0.00019178,2]
[381859076,1756373442139,-1279.08,0.00019178,2]
[381859077,1756373442148,-480.0,0.00019178,2]
[381859078,1756373442158,-4609.85,0.00019178,2]
[381859079,1756373442170,-614.2,0.00019178,2]
[381859080,1756373442180,-545.08377483,0.00019178,2]
[381859081,1756373442191,-927.71,0.00019178,2]
[381859082,1756373442202,-480.0,0.00019178,2]
[381859083,1756373442212,-480.0,0.00019178,2]
[381859084,1756373442222,-2725.0,0.00019178,2]
[381859085,1756373442232,-1226.26,0.00019178,2]
[381859086,1756373442242,-480.0,0.00019178,2]
[381859087,1756373442253,-480.0,0.00019178,2]
[381859088,1756373442263,-480.0,0.00019178,2]
[381859089,1756373442275,-406.40196478,0.00019178,2]
[381859090,1756373442288,-480.0,0.00019178,2]
[381859091,1756373442299,-480.0,0.00019178,2]
[381859092,1756373442310,-480.0,0.00019178,2]
[381859093,1756373442322,-828.99,0.00019178,2]
[381859094,1756373442335,-480.0,0.00019178,2]
[381859095,1756373442346,-480.0,0.00019178,2]
[381859096,1756373442357,-480.0,0.00019178,2]
[381859097,1756373442370,-622.4,0.00019178,2]
[381859098,1756373442383,-480.0,0.00019178,2]
[381859099,1756373442394,-480.0,0.00019178,2]
[381859100,1756373442406,-480.0,0.00019178,2]
[381859101,1756373442417,-480.0,0.00019178,2]
[381859102,1756373442428,-578.54,0.00019178,2]
[381859103,1756373442439,-480.0,0.00019178,2]
[381859104,1756373442450,-480.0,0.00019178,2]
[381859105,1756373442461,-480.0,0.00019178,2]
[381859106,1756373442471,-480.0,0.00019178,2]
[381859107,1756373442482,-637.71,0.00019178,2]
[381859108,1756373442492,-2572.37,0.00019178,2]
[381859110,1756373442503,-480.0,0.00019178,2]
[381859112,1756373442513,-480.0,0.00019178,2]
[381859114,1756373442523,-2773.8,0.00019178,2]
[381859115,1756373442533,-1977.68,0.00019178,2]
[381859116,1756373442544,-3107.44,0.00019178,2]
[381859117,1756373442554,-1151.85,0.00019178,2]
[381859119,1756373442565,-480.0,0.00019178,2]
[381859120,1756373442576,-576.49,0.00019178,2]
[381859121,1756373442586,-480.0,0.00019178,2]
[381859122,1756373442597,-2506.93,0.00019178,2]
[381859123,1756373442607,-480.0,0.00019178,2]
[381859124,1756373442619,-480.0,0.00019178,2]
[381859125,1756373442629,-480.0,0.00019178,2]
[381859126,1756373442640,-480.0,0.00019178,2]
[381859127,1756373442650,-480.0,0.00019178,2]
[381859128,1756373442660,-1555.77,0.00019178,2]
[381859129,1756373442671,-480.0,0.00019178,2]
[381859130,1756373442681,-444.70065656,0.00019178,2]
[381859131,1756373442691,-480.0,0.00019178,2]
[381859132,1756373442701,-480.0,0.00019178,2]
[381859133,1756373442712,-480.0,0.00019178,2]
[381859134,1756373442722,-480.0,0.00019178,2]
[381859135,1756373442733,-355.97894735,0.00019284,2]
[381859136,1756373442949,-1027.88487562,0.00019452,2]
[381859137,1756373442965,-1216.0,0.00019452,2]
[381859138,1756373442976,-151.0,0.00019452,2]
[381859139,1756373442987,-151.0,0.00019452,2]
[381859141,1756373442997,-500.0,0.00019452,2]
[381859143,1756373443007,-151.0,0.00019452,2]
[381859145,1756373443018,-500.0,0.00019452,2]
[381859146,1756373443030,-605.263232,0.00019452,2]
[381859147,1756373443040,-151.0,0.00019452,2]
[381859148,1756373443050,-546.50478745,0.00019452,2]
[381859149,1756373443062,-151.0,0.00019452,2]
[381859150,1756373443072,-500.0,0.00019452,2]
[381859151,1756373443082,-151.0,0.00019452,2]
[381859152,1756373443093,-500.0,0.00019452,2]
[381859153,1756373443103,-151.0,0.00019452,2]
[381859154,1756373443114,-153.56321748,0.00019452,2]
[381859155,1756373443124,-151.0,0.00019452,2]
[381859156,1756373443134,-151.0,0.00019452,2]
[381859157,1756373443144,-500.0,0.00019452,2]
[381859158,1756373443155,-500.0,0.00019452,2]
[381859160,1756373443165,-480.0,0.00019452,2]
[381859162,1756373443175,-480.0,0.00019452,2]
[381859164,1756373443186,-480.0,0.00019452,2]
[381859165,1756373443196,-480.0,0.00019452,2]
[381859166,1756373443205,-480.0,0.00019452,2]
[381859167,1756373443215,-480.0,0.00019452,2]
[381859168,1756373443225,-480.0,0.00019452,2]
[381859169,1756373443235,-480.0,0.00019452,2]
[381859170,1756373443245,-480.0,0.00019452,2]
[381859171,1756373443254,-480.0,0.00019452,2]
[381859172,1756373443264,-480.0,0.00019452,2]
[381859173,1756373443274,-480.0,0.00019452,2]
[381859174,1756373443284,-480.0,0.00019452,2]
[381859175,1756373443298,-480.0,0.00019452,2]
[381859176,1756373443308,-480.0,0.00019452,2]
[381859177,1756373443317,-480.0,0.00019452,2]
[381859178,1756373443327,-480.0,0.00019452,2]
[381859179,1756373443338,-480.0,0.00019452,2]
[381859180,1756373443348,-480.0,0.00019452,2]
[381859181,1756373443359,-480.0,0.00019452,2]
[381859182,1756373443370,-480.0,0.00019452,2]
[381859183,1756373443379,-480.0,0.00019452,2]
[381859184,1756373443389,-480.0,0.00019452,2]
[381859185,1756373443399,-480.0,0.00019452,2]
[381859186,1756373443410,-480.0,0.00019452,2]
[381859187,1756373443420,-480.0,0.00019452,2]
[381859188,1756373443430,-480.0,0.00019452,2]
[381859189,1756373443440,-179.11423784,0.00019452,2]
[381859190,1756373443450,-480.0,0.00019452,2]
[381859191,1756373443460,-480.0,0.00019452,2]
[381859193,1756373443469,-480.0,0.00019452,2]
[381859195,1756373443479,-552.79837292,0.00019452,2]
[381859197,1756373443489,-480.0,0.00019452,2]
[381859199,1756373443498,-480.0,0.00019452,2]
[381859200,1756373443507,-480.0,0.00019452,2]
[381859201,1756373443516,-480.0,0.00019452,2]
[381859202,1756373443525,-480.0,0.00019452,2]
[381859203,1756373443535,-480.0,0.00019452,2]
[381859204,1756373443545,-367.8523396,0.00019452,2]
[381859205,1756373443555,-480.0,0.00019452,2]
[381859206,1756373443564,-530.73,0.00019452,2]
[381859207,1756373443574,-480.0,0.00019452,2]
[381859208,1756373443584,-480.0,0.00019452,2]
[381859209,1756373443594,-480.0,0.00019452,2]
[381859210,1756373443604,-869.48,0.00019452,2]
[381859211,1756373443613,-480.0,0.00019452,2]
[381859212,1756373443622,-480.0,0.00019452,2]
[381859213,1756373443632,-480.0,0.00019452,2]
[381859214,1756373443642,-781.34,0.00019452,2]
[381859215,1756373443652,-480.0,0.00019452,2]
[381859216,1756373443661,-172.95050598,0.00019452,2]
[381859217,1756373443671,-480.0,0.00019452,2]
[381859218,1756373443681,-480.0,0.00019452,2]
[381859219,1756373443691,-480.0,0.00019452,2]
[381859220,1756373443701,-480.0,0.00019452,2]
[381859221,1756373443711,-480.0,0.00019452,2]
[381859222,1756373443721,-480.0,0.00019452,2]
[381859223,1756373443730,-501.28,0.00019452,2]
[381859224,1756373443740,-480.0,0.00019452,2]
[381859225,1756373443749,-480.0,0.00019452,2]
[381859226,1756373443759,-480.0,0.00019452,2]
[381859227,1756373443768,-227.79474591,0.00019452,2]
[381859228,1756373443778,-480.0,0.00019452,2]
[381859229,1756373443788,-725.68,0.00019452,2]
[381859230,1756373443799,-480.0,0.00019452,2]
[381859231,1756373443808,-188.98276846,0.00019452,2]
[381859232,1756373443818,-480.0,0.00019452,2]
[381859233,1756373443828,-480.0,0.00019452,2]
[381859234,1756373443838,-480.0,0.00019452,2]
[381859235,1756373443847,-487.67,0.00019452,2]
[381859236,1756373443857,-480.0,0.00019452,2]
[381859237,1756373443866,-1142.52,0.00019452,2]
[381859238,1756373443876,-480.0,0.00019452,2]
[381859239,1756373443885,-635.98,0.00019452,2]
[381859240,1756373443894,-480.0,0.00019452,2]
[381859241,1756373443904,-480.0,0.00019452,2]
[381859242,1756373443913,-480.0,0.00019452,2]
[381859243,1756373443923,-480.0,0.00019452,2]
[381859244,1756373443935,-485.35,0.00019452,2]
[381859245,1756373443944,-480.0,0.00019452,2]
[381859246,1756373443954,-480.0,0.00019452,2]
[381859247,1756373443963,-480.0,0.00019452,2]
[381859248,1756373443973,-480.0,0.00019452,2]
[381859249,1756373443984,-600.93,0.00019452,2]
[381859250,1756373443994,-480.0,0.00019452,2]
[381859251,1756373444006,-480.0,0.00019452,2]
[381859252,1756373444017,-480.0,0.00019452,2]
[381859253,1756373444029,-480.0,0.00019452,2]
[381859254,1756373444039,-480.0,0.00019452,2]
[381859255,1756373444049,-492.59,0.00019452,2]
[381859256,1756373444059,-480.0,0.00019452,2]
[381859257,1756373444068,-663.88,0.00019452,2]
[381859258,1756373444078,-480.0,0.00019452,2]
[381859259,1756373444088,-482.67213805,0.00019452,2]
[381859260,1756373444097,-278.08116091,0.00019452,2]
[381859267,1756373446395,-63.24515626,0.00019452,2]
[381859268,1756373447142,-480.0,0.00019178,2]
[381859269,1756373447151,-480.0,0.00019178,2]
[381859270,1756373447165,-138.67368283,0.00019452,2]
[381859271,1756373447175,-494.3,0.00019452,2]
[381859272,1756373447184,-170.93339076,0.00019452,2]
[381859273,1756373694641,172.0,0.00027397,120]
[381859275,1756373880779,325.64,0.00015135,2]
[381859276,1756373881019,325.64,0.00015135,2]
[381859277,1756373881290,325.64,0.00015135,2]
[381859287,1756373984429,708.727902,0.00013699,2]
[381859444,1756374637166,-2453.81996094,0.00019078,2]
[381859445,1756374637177,-160.0,0.00019138,2]
[381859446,1756374637187,-1000.0,0.00019166,2]
[381859447,1756374637198,-187.78006525,0.00019166,2]
[381859448,1756374637210,-300.0,0.00019167,2]
[381859449,1756374637228,-1147.8,0.00019168,3]
[381859450,1756374637239,-573.9,0.00019168,3]
[381859451,1756374637250,-286.95,0.00019168,3]
[381859452,1756374637262,-860.86,0.00019168,3]
[381859453,1756374637274,-500.0,0.00019173,2]
[381859454,1756374637285,-500.0,0.00019173,2]
[381859455,1756374637297,-500.0,0.00019173,2]
[381859456,1756374637309,-500.0,0.00019173,2]
[381859457,1756374637321,-500.0,0.00019173,2]
[381859459,1756374637332,-500.0,0.00019173,2]
[381859461,1756374637343,-500.0,0.00019173,2]
[381859463,1756374637355,-500.0,0.00019173,2]
[381859466,1756374637367,-511.85173203,0.00019173,2]
[381859468,1756374637379,-500.0,0.00019173,2]
[381859470,1756374637391,-27794.49523056,0.00019173,2]
[381859473,1756374637407,-508.10668823,0.00019173,2]
[381859537,1756374638222,-21697.39808121,0.00019173,2]
[381859539,1756374638233,-500.0,0.00019173,2]
[381859542,1756374638244,-501.00643464,0.00019173,2]
[381859544,1756374638255,-500.0,0.00019173,2]
[381859546,1756374638267,-501.24569332,0.00019173,2]
[381859548,1756374638278,-355.80338343,0.00019173,2]
[381859550,1756374638289,-500.0,0.00019173,2]
[381859553,1756374638300,-501.00028516,0.00019173,2]
[381859555,1756374638312,-500.0,0.00019173,2]
[381859557,1756374638323,-500.0,0.00019173,2]
[381859559,1756374638334,-288.72465995,0.00019173,2]
[381859561,1756374638345,-226.26693758,0.00019173,2]
[381859564,1756374638356,-500.0,0.00019173,2]
[381859566,1756374638370,-500.0,0.00019173,2]
[381859568,1756374638382,-500.0,0.00019173,2]
[381859570,1756374638392,-259.6157195,0.00019173,2]
[381859573,1756374638404,-356.930195,0.00019173,2]
[381859575,1756374638416,-500.0,0.00019173,2]
[381859577,1756374638427,-500.0,0.00019173,2]
[381859579,1756374638439,-500.0,0.00019173,2]
[381859582,1756374638450,-500.0,0.00019173,2]
[381859584,1756374638461,-500.0,0.00019173,2]
[381859586,1756374638472,-513.94243781,0.00019178,2]
[381859588,1756374638484,-480.0,0.00019178,2]
[381859590,1756374638495,-480.0,0.00019178,2]
[381859592,1756374638506,-480.0,0.00019178,2]
[381859595,1756374638517,-480.0,0.00019178,2]
[381859597,1756374638528,-335.92422163,0.00019178,2]
[381859599,1756374638539,-480.0,0.00019178,2]
[381859601,1756374638550,-817.93,0.00019178,2]
[381859603,1756374638561,-480.0,0.00019178,2]
[381859605,1756374638572,-480.0,0.00019178,2]
[381859607,1756374638583,-572.54,0.00019178,2]
[381859610,1756374638595,-480.0,0.00019178,2]
[381859612,1756374638605,-480.0,0.00019178,2]
[381859614,1756374638617,-480.0,0.00019178,2]
[381859616,1756374638628,-480.0,0.00019178,2]
[381859618,1756374638640,-480.0,0.00019178,2]
[381859621,1756374638650,-480.0,0.00019178,2]
[381859623,1756374638661,-480.0,0.00019178,2]
[381859625,1756374638672,-560.92,0.00019178,2]
[381859627,1756374638683,-480.0,0.00019178,2]
[381859629,1756374638694,-480.0,0.00019178,2]
[381859631,1756374638705,-480.0,0.00019178,2]
[381859634,1756374638716,-480.0,0.00019178,2]
[381859636,1756374638726,-480.0,0.00019178,2]
[381859638,1756374638737,-480.0,0.00019178,2]
[381859640,1756374638748,-480.0,0.00019178,2]
[381859642,1756374638759,-480.0,0.00019178,2]
[381859644,1756374638770,-480.0,0.00019178,2]
[381859647,1756374638781,-480.0,0.00019178,2]
[381859649,1756374638791,-480.0,0.00019178,2]
[381859651,1756374638802,-480.0,0.00019178,2]
[381859653,1756374638813,-480.0,0.00019178,2]
[381859655,1756374638824,-480.0,0.00019178,2]
[381859658,1756374638835,-480.0,0.00019178,2]
[381859660,1756374638845,-480.0,0.00019178,2]
[381859662,1756374638858,-480.0,0.00019178,2]
[381859664,1756374638869,-555.9,0.00019178,2]
[381859666,1756374638880,-309.43852156,0.00019178,2]
[381859668,1756374638891,-480.0,0.00019178,2]
[381859670,1756374638901,-480.0,0.00019178,2]
[381859671,1756374638912,-480.0,0.00019178,2]
[381859674,1756374638923,-480.0,0.00019178,2]
[381859676,1756374638934,-480.0,0.00019178,2]
[381859678,1756374638944,-480.0,0.00019178,2]
[381859680,1756374638954,-480.0,0.00019178,2]
[381859682,1756374638965,-480.0,0.00019178,2]
[381859684,1756374638975,-480.0,0.00019178,2]
[381859686,1756374638987,-734.05,0.00019178,2]
[381859689,1756374638997,-480.0,0.00019178,2]
[381859691,1756374639008,-559.42350719,0.00019178,2]
[381859693,1756374639019,-480.0,0.00019178,2]
[381859696,1756374639035,-480.0,0.00019178,2]
[381859698,1756374639047,-480.0,0.00019178,2]
[381859700,1756374639063,-480.0,0.00019178,2]
[381859702,1756374639075,-558.57,0.00019178,2]
[381859705,1756374639088,-480.0,0.00019178,2]
[381859707,1756374639100,-480.0,0.00019178,2]
[381859709,1756374639112,-442.39724801,0.00019178,2]
[381859711,1756374639124,-480.0,0.00019178,2]
[381859714,1756374639136,-480.0,0.00019178,2]
[381859716,1756374639148,-374.70383773,0.00019178,2]
[381859718,1756374639160,-567.20685114,0.00019178,2]
[381859720,1756374639172,-207.16992989,0.00019178,2]
[381859722,1756374639190,-480.0,0.00019178,2]
[381859725,1756374639203,-781.57,0.00019178,2]
[381859727,1756374639215,-480.0,0.00019178,2]
[381859729,1756374639225,-480.0,0.00019178,2]
[381859731,1756374639237,-480.0,0.00019178,2]
[381859733,1756374639248,-480.0,0.00019178,2]
[381859736,1756374639259,-480.0,0.00019178,2]
[381859738,1756374639271,-480.0,0.00019178,2]
[381859740,1756374639283,-480.0,0.00019178,2]
[381859742,1756374639294,-480.0,0.00019178,2]
[381859744,1756374639306,-480.0,0.00019178,2]
[381859746,1756374639317,-704.44,0.00019178,2]
[381859749,1756374639328,-480.0,0.00019178,2]
[381859751,1756374639339,-480.0,0.00019178,2]
[381859753,1756374639349,-481.77952099,0.00019178,2]
[381859755,1756374639360,-361.03779872,0.00019178,2]
[381859757,1756374639372,-480.0,0.00019178,2]
[381859759,1756374639383,-480.0,0.00019178,2]
[381859762,1756374639395,-480.0,0.00019178,2]
[381859764,1756374639406,-480.0,0.00019178,2]
[381859766,1756374639415,-480.0,0.00019178,2]
[381859768,1756374639425,-480.0,0.00019178,2]
[381859770,1756374639435,-389.80839688,0.00019178,2]
[381859772,1756374639445,-480.0,0.00019178,2]
[381859774,1756374639454,-541.24178126,0.00019178,2]
[381859776,1756374639463,-480.0,0.00019178,2]
[381859814,1756374639800,-480.0,0.00019178,2]
[381859817,1756374639814,-480.0,0.00019178,2]
[381859819,1756374639823,-480.0,0.00019178,2]
[381859821,1756374639833,-480.0,0.00019178,2]
[381859823,1756374639842,-480.0,0.00019178,2]
[381859825,1756374639852,-480.0,0.00019178,2]
[381859827,1756374639863,-480.0,0.00019178,2]
[381859829,1756374639874,-480.0,0.00019178,2]
[381859831,1756374639884,-480.0,0.00019178,2]
[381859833,1756374639893,-480.0,0.00019178,2]
[381859835,1756374639904,-480.0,0.00019178,2]
[381859837,1756374639914,-480.0,0.00019178,2]
[381859839,1756374639923,-480.0,0.00019178,2]
[381859841,1756374639932,-480.0,0.00019178,2]
[381859843,1756374639942,-480.0,0.00019178,2]
[381859845,1756374639951,-480.0,0.00019178,2]
[381859847,1756374639961,-480.0,0.00019178,2]
[381859849,1756374639971,-480.0,0.00019178,2]
[381859851,1756374639980,-480.0,0.00019178,2]
[381859853,1756374639989,-480.0,0.00019178,2]
[381859855,1756374639999,-480.0,0.00019178,2]
[381859857,1756374640008,-480.0,0.00019178,2]
[381859859,1756374640018,-480.0,0.00019178,2]
[381859860,1756374640027,-480.0,0.00019178,2]
[381859861,1756374640036,-480.0,0.00019178,2]
[381859862,1756374640045,-480.0,0.00019178,2]
[381859863,1756374640054,-1720.92,0.00019178,2]
[381859864,1756374640064,-480.0,0.00019178,2]
[381859865,1756374640073,-480.0,0.00019178,2]
[381859866,1756374640082,-480.0,0.00019178,2]
[381859867,1756374640091,-480.0,0.00019178,2]
[381859868,1756374640100,-480.0,0.00019178,2]
[381859869,1756374640110,-585.72,0.00019178,2]
[381859870,1756374640119,-480.0,0.00019178,2]
[381859871,1756374640128,-480.0,0.00019178,2]
[381859872,1756374640138,-480.0,0.00019178,2]
[381859873,1756374640147,-480.0,0.00019178,2]
[381859874,1756374640156,-481.32,0.00019178,2]
[381859875,1756374640165,-480.0,0.00019178,2]
[381859876,1756374640175,-480.0,0.00019178,2]
[381859877,1756374640184,-480.0,0.00019178,2]
[381859878,1756374640193,-480.0,0.00019178,2]
[381859879,1756374640202,-480.0,0.00019178,2]
[381859880,1756374640211,-480.0,0.00019178,2]
[381859881,1756374640220,-480.0,0.00019178,2]
[381859882,1756374640230,-480.0,0.00019178,2]
[381859884,1756374640239,-480.0,0.00019178,2]
[381859885,1756374640250,-480.0,0.00019178,2]
[381859887,1756374640260,-480.0,0.00019178,2]
[381859889,1756374640269,-480.0,0.00019178,2]
[381859891,1756374640278,-480.0,0.00019178,2]
[381859893,1756374640288,-995.31,0.00019178,2]
[381859895,1756374640298,-480.0,0.00019178,2]
[381859898,1756374640308,-480.0,0.00019178,2]
[381859900,1756374640317,-480.0,0.00019178,2]
[381859902,1756374640326,-480.0,0.00019178,2]
[381859904,1756374640336,-522.86,0.00019178,2]
[381859906,1756374640345,-480.0,0.00019178,2]
[381859908,1756374640354,-480.0,0.00019178,2]
[381859910,1756374640364,-480.0,0.00019178,2]
[381859912,1756374640374,-480.0,0.00019178,2]
[381859914,1756374640383,-480.0,0.00019178,2]
[381859916,1756374640393,-720.53,0.00019178,2]
[381859918,1756374640407,-511.94,0.00019178,2]
[381859920,1756374640416,-480.0,0.00019178,2]
[381859922,1756374640426,-480.0,0.00019178,2]
[381859924,1756374640435,-480.0,0.00019178,2]